bitfinex/quotes_ETHUSD_20250616
["timestamp","ask_amount","ask_price","bid_price","bid_amount"]
[1750070314628,7.3923773,2625.6,2625.5,11.61479832]
[1750070317366,17.3923773,2625.6,2625.5,11.61479832]
[1750070318062,17.3923773,2625.6,2625.5,7.806]
[1750070318367,17.3923773,2625.6,2625.5,11.61479832]
[1750070319166,17.3923773,2625.6,2625.5,1.603]
[1750070319318,19.20862503,2625.6,2625.5,11.61379832]
[1750070319848,19.20862503,2625.6,2625.5,7.805]
[1750070320661,19.20862503,2625.6,2625.5,11.61379832]
[1750070323259,17.3923773,2625.6,2625.5,11.61379832]
[1750070323468,17.3923773,2625.6,2625.5,11.97062242]
[1750070323775,17.3923773,2625.6,2625.5,11.61379832]
[1750070324340,17.3923773,2625.6,2625.5,11.97065138]
[1750070324577,17.3923773,2625.6,2625.5,11.9706515]
[1750070324774,17.3923773,2625.6,2625.5,11.61379832]
[1750070325885,17.3923773,2625.6,2625.5,11.97064972]
[1750070326063,17.3923773,2625.6,2625.5,11.61379832]
[1750070326764,17.3923773,2625.6,2625.5,10.01079832]
[1750070326955,17.3923773,2625.6,2625.4,5.41087009]
[1750070327161,16.47879075,2625.6,2625.5,6.202]
[1750070327364,17.39185013,2625.6,2625.5,10.01079832]
[1750070327685,17.39185013,2625.6,2625.5,10.36763305]
[1750070327863,17.39185013,2625.6,2625.5,10.36761844]
[1750070328067,17.39185013,2625.6,2625.5,10.01079832]
[1750070328274,17.39185013,2625.6,2625.5,6.202]
[1750070328508,17.39185013,2625.6,2625.5,6.55882195]
[1750070328685,17.39185013,2625.6,2625.5,6.202]
[1750070328878,17.39185013,2625.6,2625.5,6.55880554]
[1750070329049,17.39185013,2625.6,2625.5,6.55880657]
[1750070329251,17.39185013,2625.6,2625.5,6.202]
[1750070329449,17.39185013,2625.6,2625.4,3.80888093]
[1750070329667,0.91305938,2625.5,2625.4,5.41088093]
[1750070329948,0.91305938,2625.5,2625.4,11.96945837]
[1750070330153,0.91305938,2625.5,2625.4,11.61288093]
[1750070330556,0.91305938,2625.5,2625.4,11.96945881]
[1750070330867,0.91305938,2625.5,2625.4,11.96943897]
[1750070331092,13.44734439,2625.5,2625.4,0.35655532]
[1750070331387,13.44734439,2625.5,2625.2,6.202]
[1750070331557,16.28839075,2625.3,2625.2,10.01117457]
[1750070331754,17.20145013,2625.3,2625.2,6.202]
[1750070331954,17.20145013,2625.3,2625.2,10.01123358]
[1750070332155,17.20145013,2625.3,2625.2,6.55866509]
[1750070332392,17.20145013,2625.3,2625.2,6.202]
[1750070333694,10.0,2625.2,2625.1,0.02]
[1750070333897,10.91305938,2625.2,2625.1,0.02]
[1750070334095,10.91305938,2625.2,2625.1,6.222]
[1750070334788,0.91305938,2625.2,2625.1,6.222]
[1750070334995,10.91305938,2625.2,2625.1,6.222]
[1750070336916,7.20145013,2625.2,2625.1,6.222]
[1750070337059,17.20145013,2625.2,2625.1,6.222]
[1750070337394,10.91305938,2625.2,2625.1,6.222]
[1750070337599,17.20145013,2625.2,2625.1,6.222]
[1750070338198,2.07538266,2627.5,2627.4,3.80604399]
[1750070338507,1e-08,2627.5,2627.4,16.14086076]
[1750070338696,7.05429075,2628.4,2628.1,3.80493791]
[1750070339060,10.0,2628.3,2628.1,3.80503024]
[1750070339262,10.0,2628.1,2627.4,1.0415]
[1750070339598,16.28839075,2627.5,2627.4,5.89954399]
[1750070339770,16.28839075,2627.5,2627.4,12.39864245]
[1750070339960,16.28839075,2627.5,2627.4,12.18554399]
[1750070340166,16.28839075,2627.5,2627.4,11.69404399]
[1750070340366,16.28839075,2627.5,2627.4,3.80604399]
[1750070340695,17.08359328,2627.5,2627.4,10.09504399]
[1750070341993,17.08359328,2627.5,2627.4,4.16124135]
[1750070342166,17.08359328,2627.5,2627.4,4.16123893]
[1750070342372,17.08359328,2627.5,2627.4,10.30316345]
[1750070342577,17.08359328,2627.5,2627.4,10.09004399]
[1750070342775,17.08359328,2627.5,2627.4,10.65835725]
[1750070342981,17.08359328,2627.5,2627.4,10.65835777]
[1750070343182,17.08359328,2627.5,2627.4,10.6573515]
[1750070343390,17.08359328,2627.5,2627.4,10.08904399]
[1750070343577,10.0,2627.5,2627.4,10.30213829]
[1750070343776,10.0,2627.5,2627.4,10.65728524]
[1750070343989,10.0,2627.5,2627.4,10.65720818]
[1750070344193,10.0,2627.5,2627.4,10.44414049]
[1750070344499,10.0,2627.5,2627.4,10.08904399]
[1750070344805,10.0,2627.5,2627.4,10.30208347]
[1750070345007,10.0,2627.5,2627.4,10.08904399]
[1750070345302,10.0,2627.5,2627.4,10.30209086]
[1750070345507,7.23987801,2628.4,2628.3,3.8047407]
[1750070345679,0.96087801,2628.4,2628.3,4.01771727]
[1750070345889,10.96087801,2628.4,2628.3,4.15969625]
[1750070346087,10.96087801,2628.4,2628.3,3.8047407]
[1750070346404,0.19497801,2628.4,2628.3,3.8047407]
[1750070346603,8.95443317,2628.5,2628.4,3.80459595]
[1750070346907,19.14156924,2628.5,2628.4,3.80459595]
[1750070347073,19.14156924,2628.5,2628.4,4.15952334]
[1750070347272,19.14156924,2628.5,2628.4,4.01754303]
[1750070347496,19.14156924,2628.5,2628.4,4.01753776]
[1750070347771,19.14156924,2628.5,2628.4,4.01753748]
[1750070347999,10.1896,2628.4,2628.2,6.278]
[1750070348201,9.14156924,2628.5,2628.3,3.80465329]
[1750070348530,9.14156924,2628.5,2628.2,10.08286523]
[1750070348711,9.14156924,2628.5,2628.4,3.80459595]
[1750070349222,8.95443317,2628.5,2628.4,3.80459595]
[1750070349405,9.71553317,2628.7,2628.5,3.80430999]
[1750070349590,9.71553317,2628.7,2628.6,3.80430647]
[1750070350180,9.71553317,2628.7,2628.5,3.8043928]
[1750070352626,9.71553317,2628.7,2628.6,3.80430647]
[1750070353720,0.18695677,2628.8,2628.7,3.80416175]
[1750070353919,0.1896,2628.5,2628.4,3.80459595]
[1750070364968,16.50111011,2628.5,2628.4,3.80459595]
[1750070367654,16.25360978,2628.5,2628.4,4.160052]
[1750070367839,16.44320978,2628.5,2628.4,4.16005311]
[1750070368037,16.44320978,2628.5,2628.4,3.80459595]
[1750070372897,16.44320978,2628.5,2628.4,10.04559595]
[1750070378643,17.35682503,2628.5,2628.4,10.04559595]
[1750070379705,17.35682503,2628.5,2628.4,3.80459595]
[1750070380063,10.0,2628.4,2627.9,0.9932]
[1750070380267,16.50111011,2628.0,2627.9,3.80531983]
[1750070381617,10.0,2628.0,2627.9,3.80531983]
[1750070382635,10.0,2628.0,2627.9,10.04031983]
[1750070382799,0.1896,2628.2,2628.1,3.80503024]
[1750070382800,10.0,2628.2,2628.1,3.80503024]
[1750070383121,10.0,2628.4,2628.3,3.8047407]
[1750070386490,16.61758559,2628.8,2628.7,3.80416175]
[1750070386712,17.60881937,2628.8,2628.7,3.80416175]
[1750070387922,17.60881937,2628.8,2628.7,3.13749508]
[1750070388497,1.10232367,2628.8,2628.7,3.13749508]
[1750070388831,0.02,2628.9,2628.8,3.80401704]
[1750070389025,10.02,2628.9,2628.8,3.80401704]
[1750070389390,11.6836703,2628.9,2628.5,0.1896]
[1750070389720,16.31151011,2628.6,2628.5,3.8044512]
[1750070391438,10.0,2628.6,2628.5,3.8044512]
[1750070397505,0.1896,2628.7,2628.6,3.80430647]
[1750070399305,6.31151011,2628.8,2628.7,3.80416175]
[1750070402123,6.96362112,2628.8,2628.6,3.80419757]
[1750070402440,6.96362112,2628.8,2628.3,0.7622]
[1750070402441,0.1896,2628.6,2628.4,6.226]
[1750070402616,16.31151011,2628.5,2628.4,3.80459595]
[1750070403547,16.31151011,2628.5,2628.3,5.42768332]
[1750070403745,10.0,2628.4,2628.1,0.1896]
[1750070403947,0.1896,2628.2,2628.0,1.623]
[1750070404130,6.31151011,2628.1,2628.0,1.623]
[1750070404338,16.50111011,2628.1,2628.0,1.623]
[1750070406213,10.0,2628.0,2627.6,3.9953439]
[1750070406556,6.31151011,2627.7,2627.6,3.8057543]
[1750070406733,6.31151011,2627.7,2627.5,7.853]
[1750070406934,6.31151011,2627.7,2627.6,3.8057543]
[1750070410557,16.50111011,2627.9,2627.8,3.80546464]
[1750070410857,6.50111011,2627.9,2627.7,3.80553543]
[1750070411215,6.50111011,2627.9,2627.8,3.80546464]
[1750070411768,16.50111011,2627.9,2627.8,3.80546464]
[1750070413764,16.31151011,2627.9,2627.8,3.80546464]
[1750070416036,16.31151011,2627.9,2627.7,0.1896]
[1750070416365,16.31151011,2627.9,2627.6,3.80567538]
[1750070416366,16.50111011,2627.9,2627.6,3.80567538]
[1750070416524,16.31151011,2627.7,2627.6,3.80567538]
[1750070419882,10.0,2627.7,2627.6,3.80567538]
[1750070426847,10.0,2627.7,2627.6,10.01767538]
[1750070427164,16.31151011,2627.7,2627.6,3.80567538]
[1750070427370,16.31151011,2627.7,2627.6,10.01667538]
[1750070427772,10.0,2627.6,2627.1,0.7664]
[1750070427936,0.9749,2627.7,2627.5,3.80589914]
[1750070428137,6.31151011,2627.6,2627.5,10.01589914]
[1750070428855,16.31151011,2627.6,2627.5,6.21]
[1750070431067,16.31151011,2627.6,2627.1,0.7664]
[1750070431068,0.7821,2627.4,2626.8,0.7816]
[1750070431272,16.31151011,2626.9,2626.8,3.80683083]
[1750070432146,16.31151011,2626.9,2626.7,22.6049892]
[1750070432345,16.31151011,2626.9,2626.7,16.3909892]
[1750070432546,16.31151011,2626.9,2626.8,3.80691335]
[1750070432957,16.31151011,2626.9,2626.7,16.39097937]
[1750070433863,16.31151011,2626.9,2626.8,3.80691335]
[1750070436599,10.0,2626.8,2626.7,11.63699714]
[1750070436902,6.31151011,2626.9,2626.7,11.63399714]
[1750070437105,6.31151011,2626.9,2626.7,5.42399714]
[1750070437404,21.85601948,2626.9,2626.7,1.617]
[1750070438269,0.1896,2626.7,2626.4,6.211]
[1750070438491,10.0,2626.5,2626.4,10.01846876]
[1750070439780,10.0,2626.5,2626.3,6.21]
[1750070439976,16.31151011,2626.4,2626.3,6.21]
[1750070440203,10.0,2626.3,2626.2,5.6143088]
[1750070440401,6.31151011,2626.4,2626.2,11.6337088]
[1750070440570,6.50111011,2626.4,2626.2,7.826]
[1750070440770,10.0,2626.3,2626.1,1.637]
[1750070440972,16.31151011,2626.2,2626.1,1.637]
[1750070441184,16.31151011,2626.2,2626.1,7.846]
[1750070441708,16.31151011,2626.2,2626.1,11.6539281]
[1750070441917,16.31151011,2626.2,2626.1,5.4449281]
[1750070442097,16.31151011,2626.2,2626.1,11.6539281]
[1750070443572,16.31151011,2626.2,2626.1,3.8279281]
[1750070443790,16.31151011,2626.2,2626.1,10.0369281]
[1750070445278,10.0,2626.2,2626.1,10.0369281]
[1750070456810,16.31151011,2626.2,2626.1,10.0369281]
[1750070459885,16.31151011,2626.2,2626.1,0.02]
[1750070460085,16.31151011,2626.2,2626.1,6.226]
[1750070461399,21.87617561,2626.2,2626.1,0.02]
[1750070462631,18.06839251,2626.2,2626.1,0.02]
[1750070466004,21.87617561,2626.2,2626.1,0.02]
[1750070468327,22.76691297,2626.2,2626.1,0.02]
[1750070468702,3.80841011,2625.8,2625.2,10.973]
[1750070468914,0.1904,2625.5,2625.4,3.80894339]
[1750070470247,6.50191011,2625.5,2625.4,3.80894339]
[1750070470604,10.0,2625.4,2625.3,11.62100891]
[1750070471031,10.0,2625.4,2625.3,7.812]
[1750070471549,10.0,2625.4,2625.2,10.973]
[1750070471747,10.0,2625.4,2625.1,3.82933311]
[1750070471748,10.1904,2625.2,2625.1,0.02]
[1750070475468,7.65943358,2625.2,2625.1,0.02]
[1750070475669,1.0002,2625.2,2625.1,0.02]
[1750070477584,11.0002,2625.2,2625.1,0.02]
[1750070480920,0.1904,2625.2,2625.1,3.82937869]
[1750070481088,6.50191011,2625.2,2625.1,0.02]
[1750070483521,16.50191011,2625.2,2625.1,0.02]
[1750070484411,10.1904,2625.2,2625.1,0.02]
[1750070484613,16.50191011,2625.2,2625.1,0.02]
[1750070486831,20.31114369,2625.2,2625.1,0.02]
[1750070490309,16.50191011,2625.2,2625.1,0.02]
[1750070490734,20.31114369,2625.2,2625.1,0.02]
[1750070491825,10.0,2625.2,2625.1,0.02]
[1750070493927,13.80923358,2625.2,2625.1,0.02]
[1750070494129,16.31151011,2624.8,2624.7,10.01795923]
[1750070494356,16.31151011,2624.8,2624.7,11.62395923]
[1750070495235,16.31151011,2624.8,2624.7,5.41595923]
[1750070495554,16.68622129,2624.8,2624.7,3.80995923]
[1750070495749,16.68622129,2624.8,2624.7,11.62395923]
[1750070496253,16.68622129,2624.8,2624.7,7.814]
[1750070496445,16.68622129,2624.8,2624.7,11.62395923]
[1750070496755,16.68622129,2624.8,2624.7,7.814]
[1750070497452,16.68622129,2624.8,2624.6,4.59598952]
[1750070497649,16.68622129,2624.8,2624.7,11.62395923]
[1750070500445,16.68622129,2624.8,2624.7,7.814]
[1750070502697,10.0,2624.7,2624.5,0.2130507]
[1750070502867,17.41656037,2624.6,2624.2,3.81066916]
[1750070503042,16.31151011,2624.3,2624.2,10.01866916]
[1750070503245,16.31151011,2624.3,2624.2,6.208]
[1750070506285,6.31151011,2624.3,2624.2,6.209]
[1750070507749,16.31151011,2624.3,2624.2,6.209]
[1750070517717,16.31151011,2624.3,2624.1,10.683788]
[1750070517718,10.12205006,2624.3,2624.1,10.683788]
[1750070517908,10.0,2624.2,2624.1,9.077788]
[1750070518071,11.11000188,2624.3,2624.1,10.492388]
[1750070518266,0.8192,2624.2,2623.3,0.7889]
[1750070518493,16.31151011,2623.8,2623.7,0.1904]
[1750070518806,16.31151011,2623.8,2623.7,10.21081136]
[1750070518990,16.31151011,2623.8,2623.7,6.3994]
[1750070519387,16.31151011,2623.8,2623.7,10.21081136]
[1750070519870,10.0,2623.8,2623.7,10.21081136]
[1750070521072,10.0,2623.8,2623.7,11.00901136]
[1750070523816,6.31151011,2624.5,2624.3,3.81049851]
[1750070524114,16.31151011,2624.3,2624.2,3.81059937]
[1750070524312,16.31151011,2624.3,2624.2,10.01959937]
[1750070524717,16.31151011,2624.3,2624.2,3.81059937]
[1750070524874,16.31151011,2624.3,2624.2,10.01959937]
[1750070528083,10.0,2624.3,2624.2,10.82449937]
[1750070528286,10.0,2624.3,2624.2,11.01489937]
[1750070536112,0.02,2625.9,2625.2,0.55]
[1750070536313,6.31151011,2625.8,2625.5,3.80879832]
[1750070536528,16.31151011,2625.6,2625.5,3.80879832]
[1750070536717,16.31151011,2625.6,2625.5,11.64679832]
[1750070536718,6.31151011,2625.6,2625.5,11.64679832]
[1750070537289,6.31151011,2625.6,2625.5,11.64579832]
[1750070540518,0.1904,2625.8,2625.7,3.8085082]
[1750070540719,10.02,2625.9,2625.8,3.80836316]
[1750070543632,0.7595,2625.8,2625.5,1.604]
[1750070543928,17.26141011,2625.6,2625.5,1.604]
[1750070544133,18.28208509,2625.6,2625.5,7.83]
[1750070544288,18.28208509,2625.6,2625.3,3.80901345]
[1750070544484,11.78017498,2625.6,2625.4,6.228]
[1750070544702,11.78017498,2625.6,2625.5,3.80879832]
[1750070545300,10.7595,2625.6,2625.5,3.80879832]
[1750070545718,17.07101011,2625.6,2625.4,10.03687318]
[1750070545914,6.31151011,2625.5,2625.4,6.228]
[1750070546102,6.31151011,2625.5,2625.4,10.03694339]
[1750070546699,6.31151011,2625.5,2625.4,3.80894339]
[1750070546898,10.1904,2625.4,2625.3,3.8090056]
[1750070547126,6.50191011,2625.4,2625.3,10.0330056]
[1750070548640,6.50191011,2625.4,2625.3,11.6370056]
[1750070549238,6.50191011,2625.4,2625.3,3.8090056]
[1750070549440,6.50191011,2625.4,2625.3,11.6350056]
[1750070549645,6.50191011,2625.4,2625.3,3.8090056]
[1750070549838,6.50191011,2625.4,2625.3,11.6350056]
[1750070550417,0.78,2625.3,2625.0,10.981]
[1750070550633,10.78,2625.3,2625.1,6.224]
[1750070550820,6.31151011,2625.2,2625.1,6.224]
[1750070551033,0.78,2625.0,2624.8,3.80980403]
[1750070551203,0.1904,2624.9,2624.8,3.80980403]
[1750070551410,0.1904,2624.9,2624.8,10.03280403]
[1750070552745,10.1904,2624.9,2624.6,3.81007376]
[1750070552932,10.1904,2624.9,2624.7,7.828]
[1750070553746,10.1904,2624.9,2624.6,3.81007376]
[1750070553950,10.1904,2624.9,2624.7,7.827]
[1750070554247,10.1904,2624.9,2624.5,4.00057118]
[1750070554420,13.80967865,2624.9,2624.6,7.826]
[1750070554614,16.50191011,2624.7,2624.6,7.826]
[1750070556314,16.50191011,2624.7,2624.2,0.1904]
[1750070556315,10.0,2624.6,2624.2,4.0010841]
[1750070556516,16.31151011,2624.4,2624.3,11.63540945]
[1750070556930,10.0,2624.4,2624.3,11.63540945]
[1750070562255,10.0,2624.4,2624.3,12.60060945]
[1750070565428,10.0,2624.4,2624.3,12.59560945]
[1750070565972,10.0,2624.4,2624.3,12.59760945]
[1750070567774,10.0,2624.4,2624.3,12.59660945]
[1750070569732,10.0,2624.4,2624.3,4.00080945]
[1750070569935,16.31151011,2624.4,2624.3,11.62940945]
[1750070570174,16.31151011,2624.4,2624.3,3.81040945]
[1750070570340,16.31151011,2624.4,2624.3,11.63040945]
[1750070571532,16.31151011,2624.4,2624.3,3.81040945]
[1750070571734,16.31151011,2624.4,2624.2,4.00100087]
[1750070571976,10.0,2624.3,2624.2,0.1904]
[1750070572149,10.0,2624.3,2624.2,8.0094]
[1750070572847,10.0,2624.3,2624.2,0.1904]
[1750070573048,10.0,2624.3,2624.2,7.819]
[1750070573651,10.0,2624.3,2624.0,4.00132662]
[1750070573835,6.31151011,2624.1,2624.0,3.81092662]
[1750070574339,6.31151011,2624.1,2624.0,11.62892662]
[1750070574792,0.1904,2624.3,2624.2,3.81068516]
[1750070575080,0.1904,2624.5,2624.4,3.81028488]
[1750070575276,0.1904,2624.5,2624.4,6.21]
[1750070578581,0.1904,2624.5,2624.4,6.209]
[1750070578749,4.00064957,2624.5,2624.4,6.209]
[1750070578943,10.0,2624.4,2624.2,1.609]
[1750070579145,16.31151011,2624.3,2624.2,1.609]
[1750070579631,16.31151011,2624.3,2624.2,7.818]
[1750070580073,10.0,2624.2,2624.1,3.81075983]
[1750070580273,10.0,2624.2,2624.1,11.62875983]
[1750070580475,6.31151011,2624.3,2624.1,7.818]
[1750070581477,6.31151011,2624.3,2624.1,1.609]
[1750070581680,6.31151011,2624.3,2624.2,6.209]
[1750070582584,6.31151011,2624.3,2624.2,10.01968516]
[1750070582779,0.1904,2624.4,2624.2,6.209]
[1750070582976,0.1904,2624.4,2624.2,10.01968516]
[1750070583184,0.1904,2624.4,2624.3,3.81053995]
[1750070583968,0.1904,2624.4,2624.3,11.62853995]
[1750070585891,0.1904,2624.4,2624.3,7.818]
[1750070586997,0.1904,2624.4,2624.3,11.62853995]
[1750070587593,0.1904,2624.4,2624.3,7.818]
[1750070587899,0.1904,2624.4,2624.3,11.62853995]
[1750070588097,0.1904,2624.4,2624.3,7.818]
[1750070588474,16.50191011,2624.4,2624.3,7.818]
[1750070588675,10.31232467,2624.4,2624.2,1.609]
[1750070588879,4.83121493,2624.3,2624.2,1.609]
[1750070589102,5.64451493,2624.3,2624.2,7.818]
[1750070589902,1.83397498,2624.3,2624.2,7.818]
[1750070590198,0.8133,2624.3,2624.2,7.818]
[1750070590604,4.62393259,2624.3,2623.9,10.977]
[1750070590771,10.0,2624.1,2624.0,7.818]
[1750070590966,6.50191011,2624.1,2624.0,7.818]
[1750070591887,6.50191011,2624.1,2624.0,11.6289756]
[1750070592207,0.1904,2624.1,2624.0,11.6289756]
[1750070593609,0.1904,2624.1,2624.0,7.818]
[1750070593904,0.1904,2624.1,2624.0,11.6289756]
[1750070594407,0.1904,2624.1,2624.0,7.818]
[1750070594770,6.50191011,2624.1,2624.0,7.818]
[1750070595678,16.50191011,2624.1,2624.0,7.818]
[1750070595883,16.50191011,2624.1,2624.0,1.609]
[1750070596086,16.50191011,2624.1,2624.0,7.818]
[1750070596291,10.0,2624.0,2623.8,3.81124855]
[1750070596501,10.0,2624.0,2623.9,7.814]
[1750070597118,10.0,2624.0,2623.7,4.00173692]
[1750070597277,10.0,2624.0,2623.9,7.814]
[1750070597678,10.0,2624.0,2623.8,3.81124056]
[1750070597878,16.31151011,2623.9,2623.8,3.81124056]
[1750070598076,16.31151011,2623.9,2623.8,11.62524056]
[1750070598287,16.31151011,2623.9,2623.8,1.605]
[1750070598610,10.0,2623.8,2623.7,4.00174365]
[1750070598781,6.31151011,2623.9,2623.7,1.605]
[1750070598981,6.50191011,2623.9,2623.8,6.21]
[1750070599575,6.50191011,2623.9,2623.8,1.605]
[1750070599775,6.50191011,2623.9,2623.6,3.8114869]
[1750070600082,6.50191011,2623.9,2623.7,7.815]
[1750070600281,6.50191011,2623.9,2623.7,11.62639473]
[1750070600504,10.0,2623.8,2623.7,7.815]
[1750070600917,10.0,2623.8,2623.7,11.62641136]
[1750070601083,10.0,2623.8,2623.7,1.605]
[1750070601282,10.0,2623.8,2623.7,7.815]
[1750070601479,10.0,2623.8,2623.6,3.8114407]
[1750070601710,10.0,2623.8,2623.7,11.62641136]
[1750070602108,10.0,2623.8,2623.7,3.81141136]
[1750070602310,10.0,2623.8,2623.7,7.815]
[1750070602514,10.0,2623.8,2623.7,11.62641136]
[1750070603921,6.50191011,2623.9,2623.7,11.62641136]
[1750070604169,10.0,2623.8,2623.7,3.81141136]
[1750070604425,10.0,2623.8,2623.7,7.815]
[1750070604607,10.7595,2623.8,2623.7,3.81141136]
[1750070604806,10.7595,2623.8,2623.7,7.815]
[1750070604978,10.0,2623.8,2623.7,11.62641136]
[1750070605383,10.0,2623.8,2623.7,7.815]
[1750070606747,15.72788693,2623.8,2623.7,6.21]
[1750070606895,14.00174592,2623.8,2623.5,1.605]
[1750070607100,0.7797,2623.5,2623.3,0.1904]
[1750070607330,0.7797,2623.5,2623.1,0.02]
[1750070607331,10.0,2623.3,2623.1,0.02]
[1750070607491,16.31151011,2623.2,2623.1,0.02]
[1750070609949,22.95832539,2623.2,2623.1,0.02]
[1750070610115,23.57744378,2623.2,2623.1,0.02]
[1750070611033,19.76530594,2623.2,2623.1,0.02]
[1750070611351,17.11481011,2623.2,2623.1,0.02]
[1750070611707,16.31151011,2623.2,2623.1,0.02]
[1750070612356,20.88644795,2623.2,2623.1,0.02]
[1750070612938,21.45797573,2623.2,2623.1,0.02]
[1750070613935,0.8067,2622.9,2622.4,0.1904]
[1750070614110,10.0,2622.7,2622.5,1.606]
[1750070614311,0.1904,2622.8,2622.5,1.606]
[1750070614312,16.31151011,2622.6,2622.5,3.81315538]
[1750070614651,0.8067,2622.5,2622.3,6.246]
[1750070614948,16.31151011,2622.4,2622.3,10.05943413]
[1750070615456,10.0,2622.3,2622.2,3.81351509]
[1750070615657,6.31151011,2622.4,2622.3,3.81344621]
[1750070615857,10.0,2622.3,2622.2,3.81347105]
[1750070616065,6.31151011,2622.4,2622.2,11.68547105]
[1750070616358,16.31151011,2622.4,2622.3,3.81344621]
[1750070616860,16.31151011,2622.4,2622.3,10.07944621]
[1750070617060,16.31151011,2622.4,2622.3,3.81344621]
[1750070617265,16.31151011,2622.4,2622.1,4.02413231]
[1750070617266,10.0,2622.3,2622.2,5.41950929]
[1750070617425,6.31151011,2622.4,2622.2,11.68550929]
[1750070617756,6.31151011,2622.4,2622.2,3.81350929]
[1750070617916,6.31151011,2622.4,2622.3,6.267]
[1750070618118,6.31151011,2622.4,2622.3,10.08044621]
[1750070618561,6.31151011,2622.4,2622.3,6.267]
[1750070618957,6.31151011,2622.4,2622.2,3.81350943]
[1750070619169,16.31151011,2622.4,2622.3,6.266]
[1750070620361,10.0,2622.4,2622.3,10.07944621]
[1750070620558,10.0,2622.4,2622.3,12.44924621]
[1750070620759,10.0,2622.4,2622.3,12.63964621]
[1750070621659,10.0,2622.4,2622.3,4.00384621]
[1750070622051,10.0,2622.4,2622.3,11.88584621]
[1750070622248,10.0,2622.4,2622.3,4.00384621]
[1750070622452,10.0,2622.4,2622.3,11.69744621]
[1750070623237,10.0,2622.4,2622.3,3.81344621]
[1750070623448,10.0,2622.4,2622.3,11.69744621]
[1750070624087,10.0,2622.4,2622.3,11.69544621]
[1750070624455,10.0,2622.4,2622.3,3.81344621]
[1750070624663,10.0,2622.4,2622.3,11.69444621]
[1750070626379,10.0,2622.4,2622.3,12.69834621]
[1750070628185,0.1904,2623.0,2622.9,3.81257386]
[1750070628389,7.10281011,2623.4,2622.9,3.81257386]
[1750070628541,0.85501843,2623.3,2622.9,3.81257386]
[1750070628746,10.0,2623.1,2622.8,3.81266454]
[1750070629057,7.10281011,2623.4,2623.2,3.81207292]
[1750070629244,11.82699063,2623.5,2623.2,3.81207292]
[1750070629441,16.31151011,2623.4,2623.3,6.271]
[1750070629646,10.0,2623.4,2623.3,10.08299252]
[1750070629970,6.31151011,2623.4,2623.3,6.271]
[1750070630997,1.44737423,2623.5,2623.3,10.08299076]
[1750070631172,16.31151011,2623.4,2623.3,6.271]
[1750070634379,10.0,2623.4,2623.3,10.08299252]
[1750070634977,16.31151011,2623.4,2623.3,6.271]
[1750070635478,22.35953288,2623.4,2623.3,6.271]
[1750070635664,10.0,2623.2,2622.9,0.8204]
[1750070635863,4.5985785,2623.2,2623.1,1.641]
[1750070636175,4.5985785,2623.2,2623.0,6.264]
[1750070636347,0.7864,2623.2,2623.0,6.264]
[1750070637082,16.31151011,2623.1,2622.8,3.81267142]
[1750070637287,16.31151011,2623.1,2622.9,7.904]
[1750070637847,16.31151011,2623.1,2622.7,3.81278233]
[1750070638050,10.0,2622.8,2622.7,3.8128646]
[1750070638250,10.0,2622.8,2622.7,11.7158646]
[1750070639409,10.0,2622.8,2622.7,7.903]
[1750070642059,10.0,2622.8,2622.6,0.1904]
[1750070642255,10.0,2622.8,2622.3,3.81341684]
[1750070642256,16.31151011,2622.7,2622.5,1.641]
[1750070642485,10.0,2622.7,2622.6,6.258]
[1750070643110,13.8128646,2622.7,2622.6,6.258]
[1750070643458,10.0,2622.7,2622.6,6.258]
[1750070643682,16.31151011,2622.7,2622.4,0.1904]
[1750070643872,14.77512623,2622.8,2622.6,6.259]
[1750070644194,0.9624,2622.8,2622.7,6.258]
[1750070644398,4.77511923,2622.8,2622.7,6.258]
[1750070644598,0.9624,2622.8,2622.7,6.258]
[1750070645099,7.27391011,2622.8,2622.7,6.258]
[1750070646514,10.9624,2622.8,2622.7,10.0708646]
[1750070646714,10.0,2622.8,2622.7,10.0708646]
[1750070647220,10.0,2622.8,2622.7,6.258]
[1750070647521,10.0,2622.9,2622.7,6.253]
[1750070648017,6.31151011,2622.8,2622.7,6.253]
[1750070648685,16.31151011,2622.8,2622.7,6.253]
[1750070655636,10.0,2622.8,2622.7,10.0658646]
[1750070656044,16.31151011,2622.8,2622.7,6.253]
[1750070656202,16.31151011,2622.8,2622.7,10.0658646]
[1750070656391,16.31151011,2622.8,2622.7,6.253]
[1750070658235,16.31151011,2622.8,2622.7,10.0658646]
[1750070658733,16.31151011,2622.8,2622.7,6.253]
[1750070662246,16.31151011,2622.8,2622.7,10.0658646]
[1750070662443,16.31151011,2622.8,2622.7,10.8194646]
[1750070662444,10.0,2622.8,2622.7,10.8194646]
[1750070662618,10.0,2622.8,2622.7,11.0098646]
[1750070663651,5.97851757,2622.8,2622.7,11.0098646]
[1750070663849,0.9935,2623.3,2623.2,3.81213784]
[1750070663850,0.1904,2623.3,2623.2,3.81213784]
[1750070664035,6.69076875,2623.7,2623.5,3.81168251]
[1750070664224,6.31151011,2623.7,2623.6,6.237]
[1750070664874,7.13322827,2623.7,2623.2,0.1904]
[1750070665018,7.13322827,2623.7,2623.2,4.00247406]
[1750070665019,6.31151011,2623.3,2623.2,4.00247406]
[1750070665223,6.31151011,2623.3,2623.2,11.86447406]
[1750070665625,16.31151011,2623.3,2623.2,11.86447406]
[1750070667860,10.0,2623.3,2623.2,4.00247406]
[1750070668092,10.0,2623.3,2623.2,11.85947406]
[1750070672769,16.31151011,2623.3,2623.2,11.85547406]
[1750070673079,10.0,2623.3,2623.2,11.85547406]
[1750070673257,16.31151011,2623.3,2623.2,11.85447406]
[1750070675537,16.31151011,2623.3,2623.2,4.00247406]
[1750070675735,16.31151011,2623.3,2623.2,11.85147406]
[1750070676278,10.0,2623.3,2623.2,11.85147406]
[1750070678992,16.31151011,2623.3,2623.2,4.00253784]
[1750070679191,16.31151011,2623.3,2623.2,11.84753784]
[1750070681079,16.31151011,2623.3,2623.2,11.84553784]
[1750070681279,16.31151011,2623.3,2623.2,4.00253784]